fUSD/lending_fUSD_20260626
["ID","MTS","AMOUNT","RATE_DAILY","PERIOD"]
[426495292,1782477031000,-1.08612541,0.00013292,2]
[426495297,1782477031000,-685.2483,0.000134,2]
[426495295,1782477031000,-277.70821029,0.00013398,2]
[426495298,1782477031000,-150.0,0.00013488,2]
[426495300,1782477031000,-166.66,0.00013561,2]
[426495296,1782477031000,-1895.60729427,0.00013398,2]
[426495299,1782477031000,-252.1,0.00013547,2]
[426495349,1782477032000,-152.0,0.00014497,2]
[426495350,1782477032000,-152.0,0.00014497,2]
[426495340,1782477032000,-152.0,0.00014497,2]
[426495337,1782477032000,-31707.87,0.00014497,2]
[426495338,1782477032000,-152.0,0.00014497,2]
[426495331,1782477032000,-248.0,0.00014397,2]
[426495335,1782477032000,-150.3383746,0.00014497,2]
[426495336,1782477032000,-150.0,0.00014497,2]
[426495328,1782477032000,-866.65,0.00014272,2]
[426495334,1782477032000,-500.0,0.00014497,2]
[426495332,1782477032000,-13941.9404,0.00014397,2]
[426495352,1782477032000,-152.0,0.00014497,2]
[426495346,1782477032000,-152.0,0.00014497,2]
[426495351,1782477032000,-152.0,0.00014497,2]
[426495342,1782477032000,-152.0,0.00014497,2]
[426495339,1782477032000,-152.0,0.00014497,2]
[426495348,1782477032000,-152.0,0.00014497,2]
[426495344,1782477032000,-152.0,0.00014497,2]
[426495347,1782477032000,-248.0,0.00014497,2]
[426495343,1782477032000,-152.0,0.00014497,2]
[426495345,1782477032000,-236.0,0.00014497,2]
[426495333,1782477032000,-350.0,0.00014454,2]
[426495355,1782477032000,-152.0,0.00014497,2]
[426495353,1782477032000,-192.0,0.00014497,2]
[426495357,1782477032000,-152.0,0.00014497,2]
[426495341,1782477032000,-152.0,0.00014497,2]
[426495330,1782477032000,-152.0,0.00014397,2]
[426495316,1782477032000,-600.0,0.00014031,2]
[426495329,1782477032000,-150.0,0.00014396,2]
[426495301,1782477032000,-6678.34,0.00013657,2]
[426495304,1782477032000,-172.13,0.00013812,2]
[426495302,1782477032000,-200.0,0.00013699,2]
[426495303,1782477032000,-500.0,0.00013769,3]
[426495305,1782477032000,-166.66,0.00013829,2]
[426495309,1782477032000,-600.0,0.00014031,2]
[426495306,1782477032000,-236.85,0.00013845,2]
[426495307,1782477032000,-866.65,0.00013924,2]
[426495308,1782477032000,-166.74,0.00013953,2]
[426495311,1782477032000,-300.0,0.00014031,2]
[426495312,1782477032000,-300.0,0.00014031,2]
[426495315,1782477032000,-600.0,0.00014031,2]
[426495327,1782477032000,-155.85215518,0.00014249,2]
[426495321,1782477032000,-154.5,0.00014031,2]
[426495313,1782477032000,-293.30864641,0.00014031,2]
[426495317,1782477032000,-500.0,0.00014031,2]
[426495314,1782477032000,-600.0,0.00014031,2]
[426495318,1782477032000,-300.0,0.00014031,2]
[426495354,1782477032000,-152.0,0.00014497,2]
[426495320,1782477032000,-600.0,0.00014031,2]
[426495319,1782477032000,-300.0,0.00014031,2]
[426495324,1782477032000,-172.04,0.00014142,2]
[426495322,1782477032000,-166.66,0.00014098,2]
[426495323,1782477032000,-150.0,0.00014105,2]
[426495325,1782477032000,-501.00853723,0.00014225,2]
[426495326,1782477032000,-151.0,0.00014249,2]
[426495310,1782477032000,-250.0,0.00014031,2]
[426495362,1782477032000,-152.0,0.00014497,2]
[426495367,1782477032000,-152.0,0.00014497,2]
[426495363,1782477032000,-152.0,0.00014497,2]
[426495389,1782477032000,-455.30510822,0.000149,2]
[426495400,1782477032000,-861.425644,0.00014998,2]
[426495390,1782477032000,-783.32004159,0.000149,2]
[426495392,1782477032000,-866.65,0.00014968,2]
[426495393,1782477032000,-156.6926069,0.0001499,2]
[426495394,1782477032000,-6810.05,0.0001499,2]
[426495397,1782477032000,-152.0,0.00014994,2]
[426495395,1782477032000,-6810.05,0.0001499,2]
[426495399,1782477032000,-1363.9321049,0.00014998,2]
[426495396,1782477032000,-300.0,0.00014994,2]
[426495401,1782477032000,-1061.08890711,0.00014999,2]
[426495413,1782477032000,-500.0,0.00014999,2]
[426495408,1782477032000,-180.22094023,0.00014999,2]
[426495409,1782477032000,-546.25176112,0.00014999,2]
[426495403,1782477032000,-297.37335432,0.00014999,2]
[426495406,1782477032000,-151.88854199,0.00014999,2]
[426495404,1782477032000,-192.59949679,0.00014999,2]
[426495402,1782477032000,-500.0,0.00014999,2]
[426495412,1782477032000,-500.0,0.00014999,2]
[426495411,1782477032000,-500.0,0.00014999,2]
[426495405,1782477032000,-500.0,0.00014999,2]
[426495407,1782477032000,-175.21752662,0.00014999,2]
[426495410,1782477032000,-500.0,0.00014999,2]
[426495415,1782477032000,-557.69,0.00014999,2]
[426495414,1782477032000,-500.0,0.00014999,2]
[426495391,1782477032000,-350.0,0.00014948,2]
[426495388,1782477032000,-2781.23387286,0.000149,2]
[426495398,1782477032000,-6950.3185806,0.00014998,2]
[426495384,1782477032000,-1614.32452746,0.00014894,2]
[426495360,1782477032000,-152.0,0.00014497,2]
[426495358,1782477032000,-152.0,0.00014497,2]
[426495364,1782477032000,-240.0,0.00014497,2]
[426495361,1782477032000,-152.0,0.00014497,2]
[426495359,1782477032000,-240.0,0.00014497,2]
[426495365,1782477032000,-152.0,0.00014497,2]
[426495387,1782477032000,-2591.17503326,0.000149,2]
[426495377,1782477032000,-1074.80797981,0.00014799,5]
[426495376,1782477032000,-1074.80797981,0.00014799,5]
[426495368,1782477032000,-248.0,0.00014497,2]
[426495366,1782477032000,-248.0,0.00014497,2]
[426495374,1782477032000,-500.0,0.00014771,2]
[426495373,1782477032000,-2500.0,0.000147,2]
[426495375,1782477032000,-724.71490243,0.00014773,2]
[426495370,1782477032000,-6126.2233,0.000147,2]
[426495372,1782477032000,-5878.7923,0.000147,2]
[426495385,1782477032000,-2204.7845,0.000149,2]
[426495386,1782477032000,-186.9691619,0.000149,2]
[426495380,1782477032000,-500.0,0.00014799,2]
[426495383,1782477032000,-200.0,0.0001488,2]
[426495382,1782477032000,-500.0,0.0001484,2]
[426495356,1782477032000,-152.0,0.00014497,2]
[426495381,1782477032000,-500.0,0.00014799,2]
[426495379,1782477032000,-500.0,0.00014799,2]
[426495378,1782477032000,-1074.80797981,0.00014799,5]
[426495371,1782477032000,-1474.9609,0.000147,2]
[426495369,1782477032000,-866.65,0.0001462,2]
[426495416,1782477033000,-300.0,0.00014999,2]
[426495417,1782477033000,-666.0,0.00014999,2]
[426495418,1782477033000,-342.0,0.00015,5]
[426495423,1782477033000,-40372.10355583,0.00015,2]
[426495421,1782477033000,-12197.77656816,0.00015,2]
[426495422,1782477033000,-157539.84162369,0.00015,2]
[426495420,1782477033000,-884.0,0.00015,2]
[426495419,1782477033000,-272.0,0.00015,5]
[426495424,1782477033000,-18477.89278919,0.00015,2]
[426495425,1782477033000,-1254.41808677,0.00015,2]
[426495445,1782477037000,-341.50517263,0.00015,2]
[426495444,1782477037000,-2642.76,0.00015,2]
[426495443,1782477037000,-1465.70254899,0.00015,2]
[426495442,1782477037000,-3216.5170958,0.00015,2]
[426495446,1782477038000,-1220.78023802,0.00015,2]
[426495447,1782477038000,-38263.08447747,0.00015,2]
[426495456,1782477040000,-3738.38533,0.000146,2]
[426495458,1782477040000,-775.67129044,0.000146,2]
[426495457,1782477040000,-359.21389733,0.000146,2]
[426495461,1782477041000,-500.0,0.000146,2]
[426495460,1782477041000,-176846.16368589,0.000146,2]
[426495459,1782477041000,-56804.55264867,0.000146,2]
[426495472,1782477042000,-3477.47423098,0.000146,2]
[426495473,1782477043000,-1405.67364972,0.000146,2]
[426495513,1782477045000,-4095.32311312,0.000146,2]
[426495516,1782477046000,-530.24107123,0.00014998,2]
[426495514,1782477046000,-666.54434994,0.000146,2]
[426495515,1782477046000,-10388.63010391,0.000146,2]
[426495518,1782477046000,-500.0,0.00014998,2]
[426495520,1782477046000,-500.0,0.00014998,2]
[426495519,1782477046000,-500.0,0.00014998,2]
[426495517,1782477046000,-500.0,0.00014998,2]
[426495521,1782477046000,-260.11590397,0.00014998,2]
[426495524,1782477046000,-126.47971497,0.00014998,2]
[426495526,1782477046000,-500.0,0.00014998,2]
[426495528,1782477046000,-257.60695379,0.00014998,2]
[426495530,1782477046000,-156.80914107,0.00014998,2]
[426495529,1782477046000,-242.39304621,0.00014998,2]
[426495525,1782477046000,-373.52028503,0.00014998,2]
[426495527,1782477046000,-500.0,0.00014998,2]
[426495522,1782477046000,-500.0,0.00014998,2]
[426495523,1782477046000,-500.0,0.00014998,2]
[426495544,1782477123000,606.3,0.00037226,120]
[426495545,1782477134000,2000.0,0.00037226,120]
[426495547,1782477148000,500.0,0.00037226,120]
[426495548,1782477181000,500.0,0.00037226,120]
[426495549,1782477182000,500.0,0.00037226,120]
[426495553,1782477258000,500.0,0.00030136,120]
[426495554,1782477258000,500.0,0.00030136,120]
[426495555,1782477259000,500.0,0.00030136,120]
[426495557,1782477259000,500.0,0.00030136,120]
[426495556,1782477259000,500.0,0.00030136,120]
[426495558,1782477261000,19639.91708434,0.00037226,120]
[426495560,1782477302000,1998.985833,0.00037226,120]
[426495564,1782477414000,500.0,0.00037226,120]
[426495565,1782477423000,1212.6,0.00037226,120]
[426495566,1782477434000,162.1629713,0.00037226,120]
[426495568,1782477457000,156.84533474,0.00037226,120]
[426495567,1782477457000,195.11042746,0.00037226,120]
[426495569,1782477458000,155.77184039,0.00037226,120]
[426495570,1782477458000,195.11042746,0.00037226,120]
[426495572,1782477458000,155.77184039,0.00037226,120]
[426495573,1782477458000,195.11042747,0.00037226,120]
[426495574,1782477458000,155.77184039,0.00037226,120]
[426495575,1782477458000,151.0,0.00037226,120]
[426495571,1782477458000,157.7201209,0.00037226,120]
[426495580,1782477459000,151.0,0.00037226,120]
[426495576,1782477459000,157.66579751,0.00037226,120]
[426495577,1782477459000,155.77184039,0.00037226,120]
[426495578,1782477459000,187.78006524,0.00037226,120]
[426495579,1782477459000,6888.0,0.00037226,120]
[426495581,1782477459000,151.0,0.00037226,120]
[426495586,1782477459000,1343.86578026,0.00037226,120]
[426495583,1782477459000,187.78006525,0.00037226,120]
[426495584,1782477459000,155.77184039,0.00037226,120]
[426495585,1782477459000,621.78829553,0.00037226,120]
[426495587,1782477459000,1677.75555911,0.00037226,120]
[426495588,1782477459000,151.0,0.00037226,120]
[426495582,1782477459000,151.0,0.00037226,120]
[426495594,1782477460000,155.77184039,0.00037226,120]
[426495589,1782477460000,155.77184039,0.00037226,120]
[426495591,1782477460000,151.0,0.00037226,120]
[426495590,1782477460000,151.0,0.00037226,120]
[426495592,1782477460000,151.0,0.00037226,120]
[426495593,1782477460000,151.0,0.00037226,120]
[426495595,1782477460000,174.61919144,0.00037226,120]
[426495603,1782477460000,200.0,0.00037226,120]
[426495597,1782477460000,500.0,0.00037226,120]
[426495598,1782477460000,187.78006524,0.00037226,120]
[426495599,1782477460000,151.0,0.00037226,120]
[426495600,1782477460000,500.0,0.00037226,120]
[426495601,1782477460000,155.77184039,0.00037226,120]
[426495602,1782477460000,646.65982734,0.00037226,120]
[426495596,1782477460000,151.0,0.00037226,120]
[426495604,1782477461000,187.78006526,0.00037226,120]
[426495605,1782477461000,500.0,0.00037226,120]
[426495606,1782477461000,187.78006526,0.00037226,120]
[426495608,1782477461000,155.77184039,0.00037226,120]
[426495607,1782477461000,500.0,0.00037226,120]
[426495609,1782477461000,172.24682007,0.00037226,120]
[426495610,1782477461000,151.0,0.00037226,120]
[426495611,1782477461000,151.0,0.00037226,120]
[426495612,1782477461000,155.77184039,0.00037226,120]
[426495613,1782477461000,500.0,0.00037226,120]
[426495614,1782477461000,500.0,0.00037226,120]
[426495615,1782477461000,172.24682007,0.00037226,120]
[426495616,1782477462000,151.0,0.00037226,120]
[426495617,1782477462000,151.0,0.00037226,120]
[426495618,1782477462000,151.0,0.00037226,120]
[426495619,1782477462000,155.77184039,0.00037226,120]
[426495620,1782477462000,500.0,0.00037226,120]
[426495622,1782477462000,172.24682007,0.00037226,120]
[426495628,1782477462000,172.24682008,0.00037226,120]
[426495623,1782477462000,151.0,0.00037226,120]
[426495624,1782477462000,151.0,0.00037226,120]
[426495626,1782477462000,155.77184039,0.00037226,120]
[426495625,1782477462000,500.0,0.00037226,120]
[426495627,1782477462000,500.0,0.00037226,120]
[426495629,1782477462000,151.0,0.00037226,120]
[426495621,1782477462000,155.77184039,0.00037226,120]
[426495634,1782477463000,155.77184039,0.00037226,120]
[426495630,1782477463000,500.0,0.00037226,120]
[426495631,1782477463000,155.77184039,0.00037226,120]
[426495632,1782477463000,151.0,0.00037226,120]
[426495633,1782477463000,500.0,0.00037226,120]
[426495635,1782477463000,500.0,0.00037226,120]
[426495640,1782477463000,151.0,0.00037226,120]
[426495637,1782477463000,500.0,0.00037226,120]
[426495638,1782477463000,155.77184039,0.00037226,120]
[426495639,1782477463000,500.0,0.00037226,120]
[426495641,1782477463000,155.77184039,0.00037226,120]
[426495642,1782477463000,500.0,0.00037226,120]
[426495636,1782477463000,151.0,0.00037226,120]
[426495643,1782477464000,500.0,0.00037226,120]
[426495645,1782477464000,151.0,0.00037226,120]
[426495646,1782477464000,500.0,0.00037226,120]
[426495647,1782477464000,155.77184039,0.00037226,120]
[426495644,1782477464000,155.77184039,0.00037226,120]
[426495649,1782477464000,151.0,0.00037226,120]
[426495650,1782477464000,500.0,0.00037226,120]
[426495652,1782477464000,500.0,0.00037226,120]
[426495651,1782477464000,155.77184054,0.00037226,120]
[426495653,1782477464000,500.0,0.00037226,120]
[426495648,1782477464000,500.0,0.00037226,120]
[426495654,1782477465000,151.0,0.00037226,120]
[426495655,1782477465000,500.0,0.00037226,120]
[426495656,1782477465000,151.0,0.00037226,120]
[426495658,1782477465000,500.0,0.00037226,120]
[426495659,1782477465000,500.0,0.00037226,120]
[426495660,1782477465000,151.0,0.00037226,120]
[426495661,1782477465000,500.0,0.00037226,120]
[426495657,1782477465000,500.0,0.00037226,120]
[426495663,1782477466000,500.0,0.00037226,120]
[426495662,1782477466000,500.0,0.00037226,120]
[426495664,1782477467000,500.0,0.00037226,120]
[426495665,1782477665000,500.0,0.00037228,120]
[426495667,1782477665000,500.0,0.00037228,120]
[426495666,1782477665000,500.0,0.00037228,120]
[426495670,1782477666000,500.0,0.00037228,120]
[426495669,1782477666000,500.0,0.00037228,120]
[426495668,1782477666000,500.0,0.00037228,120]
[426495674,1782477667000,500.0,0.00037228,120]
[426495673,1782477667000,500.0,0.00037228,120]
[426495672,1782477667000,500.0,0.00037228,120]
[426495671,1782477667000,500.0,0.00037228,120]
[426495677,1782477668000,500.0,0.00037228,120]
[426495676,1782477668000,500.0,0.00037228,120]
[426495675,1782477668000,500.0,0.00037228,120]
[426495679,1782477669000,626.92401606,0.00037228,120]
[426495678,1782477669000,500.0,0.00037228,120]
[426495680,1782477724000,606.3,0.00037228,120]
[426495681,1782477752000,500.0,0.00037228,120]
[426495682,1782477752000,500.0,0.00037228,120]
[426495685,1782477753000,631.91,0.00037228,120]
[426495684,1782477753000,500.0,0.00037228,120]
[426495683,1782477753000,500.0,0.00037228,120]
[426495692,1782477758000,155.66481189,0.00037228,120]
[426495691,1782477758000,167.23750925,0.00037228,120]
[426495690,1782477758000,155.66481189,0.00037228,120]
[426495689,1782477758000,167.23750925,0.00037228,120]
[426495688,1782477758000,157.7201209,0.00037228,120]
[426495687,1782477758000,167.23750925,0.00037228,120]
[426495686,1782477758000,157.7201209,0.00037228,120]
[426495694,1782477759000,167.23750925,0.00037228,120]
[426495695,1782477759000,207.10070653,0.00037228,120]
[426495696,1782477759000,167.23750925,0.00037228,120]
[426495693,1782477759000,207.10070653,0.00037228,120]
[426495698,1782477759000,167.23750925,0.00037228,120]
[426495699,1782477759000,157.66579751,0.00037228,120]
[426495700,1782477759000,151.0,0.00037228,120]
[426495697,1782477759000,207.10070653,0.00037228,120]
[426495702,1782477760000,167.23750928,0.00037228,120]
[426495701,1782477760000,207.10070653,0.00037228,120]
[426495703,1782477760000,157.66579751,0.00037228,120]
[426495705,1782477760000,6888.0,0.00037228,120]
[426495704,1782477760000,151.0,0.00037228,120]
[426495706,1782477760000,151.0,0.00037228,120]
[426495709,1782477760000,207.10070653,0.00037228,120]
[426495708,1782477760000,245.66078864,0.00037228,120]
[426495710,1782477760000,217.86016673,0.00037228,120]
[426495711,1782477760000,7142.856,0.00037228,120]
[426495707,1782477760000,151.0,0.00037228,120]
[426495716,1782477761000,153.1082845,0.00037228,120]
[426495712,1782477761000,200.0,0.00037228,120]
[426495713,1782477761000,500.0,0.00037228,120]
[426495714,1782477761000,151.0,0.00037228,120]
[426495715,1782477761000,151.0,0.00037228,120]
[426495717,1782477761000,207.10070653,0.00037228,120]
[426495722,1782477761000,151.0,0.00037228,120]
[426495719,1782477761000,151.0,0.00037228,120]
[426495720,1782477761000,194.72792766,0.00037228,120]
[426495721,1782477761000,151.0,0.00037228,120]
[426495723,1782477761000,4063.18050464,0.00037228,120]
[426495724,1782477761000,518.5,0.00037228,120]
[426495725,1782477761000,151.0,0.00037228,120]
[426495718,1782477761000,151.0,0.00037228,120]
[426495731,1782477762000,245.66078864,0.00037228,120]
[426495726,1782477762000,151.0,0.00037228,120]
[426495727,1782477762000,207.10070653,0.00037228,120]
[426495729,1782477762000,200.0,0.00037228,120]
[426495728,1782477762000,245.66078864,0.00037228,120]
[426495730,1782477762000,153.1082845,0.00037228,120]
[426495732,1782477762000,151.0,0.00037228,120]
[426495740,1782477762000,151.0,0.00037228,120]
[426495733,1782477762000,294.94632001,0.00037228,120]
[426495735,1782477762000,151.0,0.00037228,120]
[426495736,1782477762000,207.10070653,0.00037228,120]
[426495737,1782477762000,153.1082845,0.00037228,120]
[426495738,1782477762000,151.0,0.00037228,120]
[426495739,1782477762000,207.10070653,0.00037228,120]
[426495734,1782477762000,245.66078864,0.00037228,120]
[426495741,1782477763000,151.0,0.00037228,120]
[426495742,1782477763000,207.10070653,0.00037228,120]
[426495744,1782477763000,151.0,0.00037228,120]
[426495743,1782477763000,153.1082845,0.00037228,120]
[426495745,1782477763000,207.10070653,0.00037228,120]
[426495746,1782477763000,151.0,0.00037228,120]
[426495748,1782477763000,207.10070653,0.00037228,120]
[426495749,1782477763000,151.0,0.00037228,120]
[426495750,1782477763000,151.0,0.00037228,120]
[426495751,1782477763000,153.1082845,0.00037228,120]
[426495752,1782477763000,207.10070653,0.00037228,120]
[426495753,1782477763000,151.0,0.00037228,120]
[426495754,1782477763000,207.10070653,0.00037228,120]
[426495747,1782477763000,153.1082845,0.00037228,120]
[426495758,1782477764000,207.10070653,0.00037228,120]
[426495755,1782477764000,151.0,0.00037228,120]
[426495756,1782477764000,151.0,0.00037228,120]
[426495757,1782477764000,153.1082845,0.00037228,120]
[426495761,1782477764000,153.1082845,0.00037228,120]
[426495759,1782477764000,151.0,0.00037228,120]
[426495762,1782477764000,207.10070653,0.00037228,120]
[426495764,1782477764000,153.10828458,0.00037228,120]
[426495763,1782477764000,207.10070653,0.00037228,120]
[426495765,1782477764000,207.10070653,0.00037228,120]
[426495766,1782477764000,207.10070653,0.00037228,120]
[426495760,1782477764000,151.0,0.00037228,120]
[426495767,1782477765000,207.10070655,0.00037228,120]
[426495791,1782478233000,-153.99,0.00014021,2]
[426495792,1782478233000,-708.23,0.00014106,2]
[426495798,1782478233000,-300.0,0.00014295,2]
[426495797,1782478233000,-300.0,0.00014295,2]
[426495795,1782478233000,-300.0,0.00014295,2]
[426495790,1782478233000,-250.0,0.00014,2]
[426495789,1782478233000,-150.0,0.00013987,2]
[426495787,1782478233000,-708.23,0.0001377,2]
[426495788,1782478233000,-163.82,0.00013898,2]
[426495785,1782478233000,-153.99,0.00013679,2]
[426495786,1782478233000,-252.1,0.00013764,2]
[426495784,1782478233000,-150.0,0.00013488,2]
[426495782,1782478233000,-160.0,0.00013435,2]
[426495780,1782478233000,-153.99,0.00013337,2]
[426495777,1782478233000,-200.0,0.00013008,2]
[426495779,1782478233000,-200.0,0.00013008,7]
[426495781,1782478233000,-708.23,0.00013435,2]
[426495778,1782478233000,-200.0,0.00013008,2]
[426495776,1782478233000,-153.99,0.00012995,2]
[426495783,1782478233000,-237.64,0.00013486,2]
[426495796,1782478233000,-300.0,0.00014295,2]
[426495800,1782478233000,-600.0,0.00014295,2]
[426495794,1782478233000,-150.06352414,0.00014295,2]
[426495793,1782478233000,-173.37,0.00014114,2]
[426495825,1782478233000,-152.0,0.00014685,2]
[426495823,1782478233000,-150.0,0.00014675,2]
[426495822,1782478233000,-2154.60159533,0.000146,2]
[426495819,1782478233000,-152.0,0.00014504,2]
[426495821,1782478233000,-520.74,0.00014514,2]
[426495820,1782478233000,-292.0,0.00014504,2]
[426495818,1782478233000,-152.0,0.00014504,2]
[426495817,1782478233000,-17025.43041114,0.00014504,2]
[426495814,1782478233000,-268.95559825,0.00014504,2]
[426495824,1782478233000,-39244.8339,0.00014685,2]
[426495811,1782478233000,-6513.22962227,0.00014504,2]
[426495812,1782478233000,-556.02436834,0.00014504,2]
[426495799,1782478233000,-300.0,0.00014295,2]
[426495802,1782478233000,-600.0,0.00014295,2]
[426495805,1782478233000,-328.64488038,0.00014295,2]
[426495801,1782478233000,-600.0,0.00014295,2]
[426495809,1782478233000,-150.0,0.00014487,2]
[426495806,1782478233000,-153.99,0.00014363,2]
[426495807,1782478233000,-708.23,0.00014442,2]
[426495808,1782478233000,-174.62,0.00014444,2]
[426495804,1782478233000,-200.28531303,0.00014295,2]
[426495857,1782478234000,-240.0,0.00014685,2]
[426495852,1782478234000,-152.0,0.00014685,2]
[426495853,1782478234000,-152.0,0.00014685,2]
[426495859,1782478234000,-152.0,0.00014685,2]
[426495855,1782478234000,-152.0,0.00014685,2]
[426495856,1782478234000,-152.0,0.00014685,2]
[426495849,1782478234000,-152.0,0.00014685,2]
[426495850,1782478234000,-152.0,0.00014685,2]
[426495863,1782478234000,-152.0,0.00014685,2]
[426495854,1782478234000,-152.0,0.00014685,2]
[426495860,1782478234000,-152.0,0.00014685,2]
[426495861,1782478234000,-152.0,0.00014685,2]
[426495873,1782478234000,-173.24479151,0.00014717,2]
[426495870,1782478234000,-152.0,0.00014685,2]
[426495865,1782478234000,-152.0,0.00014685,2]
[426495867,1782478234000,-152.0,0.00014685,2]
[426495864,1782478234000,-288.0,0.00014685,2]
[426495851,1782478234000,-248.0,0.00014685,2]
[426495858,1782478234000,-152.0,0.00014685,2]
[426495848,1782478234000,-192.0,0.00014685,2]
[426495837,1782478234000,-152.0,0.00014685,2]
[426495845,1782478234000,-152.0,0.00014685,2]
[426495862,1782478234000,-152.0,0.00014685,2]
[426495827,1782478234000,-152.0,0.00014685,2]
[426495830,1782478234000,-296.0,0.00014685,2]
[426495828,1782478234000,-152.0,0.00014685,2]
[426495826,1782478234000,-296.0,0.00014685,2]
[426495834,1782478234000,-152.0,0.00014685,2]
[426495829,1782478234000,-300.0,0.00014685,2]
[426495832,1782478234000,-152.0,0.00014685,2]
[426495833,1782478234000,-152.0,0.00014685,2]
[426495831,1782478234000,-152.0,0.00014685,2]
[426495836,1782478234000,-152.0,0.00014685,2]
[426495847,1782478234000,-152.0,0.00014685,2]
[426495840,1782478234000,-292.0,0.00014685,2]
[426495838,1782478234000,-152.0,0.00014685,2]
[426495839,1782478234000,-152.0,0.00014685,2]
[426495844,1782478234000,-152.0,0.00014685,2]
[426495843,1782478234000,-296.0,0.00014685,2]
[426495841,1782478234000,-152.0,0.00014685,2]
[426495842,1782478234000,-152.0,0.00014685,2]
[426495846,1782478234000,-152.0,0.00014685,2]
[426495868,1782478234000,-192.0,0.00014685,2]
[426495835,1782478234000,-292.0,0.00014685,2]
[426495869,1782478234000,-152.0,0.00014685,2]
[426495890,1782478234000,-500.0,0.00014789,2]
[426495893,1782478234000,-500.0,0.00014789,2]
[426495894,1782478234000,-500.0,0.00014789,2]
[426495896,1782478234000,-500.0,0.00014789,2]
[426495899,1782478234000,-500.0,0.00014789,2]
[426495901,1782478234000,-500.0,0.00014789,2]
[426495910,1782478234000,-1404.76348818,0.0001479,2]
[426495906,1782478234000,-500.0,0.00014789,2]
[426495900,1782478234000,-500.0,0.00014789,2]
[426495911,1782478234000,-6453.0247987,0.00014791,2]
[426495904,1782478234000,-500.0,0.00014789,2]
[426495903,1782478234000,-500.0,0.00014789,2]
[426495902,1782478234000,-500.0,0.00014789,2]
[426495905,1782478234000,-500.0,0.00014789,2]
[426495907,1782478234000,-265.72617789,0.00014789,2]
[426495908,1782478234000,-500.0,0.00014789,2]
[426495912,1782478234000,-4237.92602609,0.00014791,2]
[426495913,1782478234000,-1005.3639732,0.00014791,2]
[426495866,1782478234000,-152.0,0.00014685,2]
[426495892,1782478234000,-500.0,0.00014789,2]
[426495888,1782478234000,-500.0,0.00014789,2]
[426495909,1782478234000,-500.0,0.00014789,2]
[426495889,1782478234000,-500.0,0.00014789,2]
[426495871,1782478234000,-152.0,0.00014685,2]
[426495874,1782478234000,-1033.31351895,0.00014773,2]
[426495885,1782478234000,-500.0,0.00014789,2]
[426495875,1782478234000,-708.23,0.00014778,2]
[426495877,1782478234000,-1448.27662541,0.00014779,2]
[426495879,1782478234000,-32452.20985526,0.00014785,2]
[426495883,1782478234000,-500.0,0.00014789,2]